[Event "Titled Tuesday Blitz May 10 Early 2022"]
[White "Bachmann, Axel"]
[Black "Oparin, Grigoriy"]
[WhiteFideId "3700488"]
[BlackFideId "24125890"]
[WhiteElo "2587"]
[BlackElo "2665"]
[Result "1-0"]
[Round "10"]
[TimeControl "180+1"]
[Date "2022.05.10"]
[WhiteClock "0:00:08"]
[BlackClock "0:00:08"]

1. e4 {[%clk 0:02:59]}  e5 {[%clk 0:02:58]} 2. Bc4 {[%clk 0:02:58]}  Nc6 {[%clk 0:02:58]} 3. d3 {[%clk 0:02:57]}  Nf6 {[%clk 0:02:58]} 4. Nc3 {[%clk 0:02:57]}  Na5 {[%clk 0:02:58]} 5. Nge2 {[%clk 0:02:56]}  Bc5 {[%clk 0:02:53]} 6. O-O {[%clk 0:02:50]}  O-O {[%clk 0:02:52]} 7. a4 {[%clk 0:02:49]}  Nxc4 {[%clk 0:02:52]} 8. dxc4 {[%clk 0:02:50]}  d6 {[%clk 0:02:51]} 9. Qd3 {[%clk 0:02:30]}  a5 {[%clk 0:02:42]} 10. Be3 {[%clk 0:02:23]}  Nd7 {[%clk 0:02:42]} 11. Ng3 {[%clk 0:02:17]}  Bxe3 {[%clk 0:02:41]} 12. Qxe3 {[%clk 0:02:18]}  Nc5 {[%clk 0:02:41]} 13. Rad1 {[%clk 0:02:16]}  Be6 {[%clk 0:02:37]} 14. b3 {[%clk 0:02:15]}  g6 {[%clk 0:02:27]} 15. f4 {[%clk 0:02:00]}  exf4 {[%clk 0:02:26]} 16. Qxf4 {[%clk 0:02:01]}  Qe7 {[%clk 0:02:21]} 17. e5 {[%clk 0:01:42]}  dxe5 {[%clk 0:02:14]} 18. Qxe5 {[%clk 0:01:43]}  Rae8 {[%clk 0:02:01]} 19. Rde1 {[%clk 0:00:52]}  f6 {[%clk 0:01:57]} 20. Qe3 {[%clk 0:00:49]}  Nd7 {[%clk 0:01:40]} 21. Nd5 {[%clk 0:00:45]}  Qd8 {[%clk 0:01:28]} 22. Qd4 {[%clk 0:00:39]}  c6 {[%clk 0:00:50]} 23. Nf4 {[%clk 0:00:38]}  Bf7 {[%clk 0:00:51]} 24. Ne4 {[%clk 0:00:35]}  Kg7 {[%clk 0:00:29]} 25. Nd6 {[%clk 0:00:33]}  Rxe1 {[%clk 0:00:29]} 26. Rxe1 {[%clk 0:00:33]}  Ne5 {[%clk 0:00:24]} 27. c5 {[%clk 0:00:21]}  Bg8 {[%clk 0:00:25]} 28. h3 {[%clk 0:00:16]}  h5 {[%clk 0:00:16]} 29. Nd3 {[%clk 0:00:16]}  Nf7 {[%clk 0:00:11]} 30. Nf4 {[%clk 0:00:08]}  Ne5 {[%clk 0:00:11]} 31. Re3 {[%clk 0:00:07]}  Qd7 {[%clk 0:00:09]} 32. Rg3 {[%clk 0:00:05]}  Kh7 {[%clk 0:00:08]} 33. Qe4 {[%clk 0:00:05]}  Bd5 {[%clk 0:00:05]} 34. Nxd5 {[%clk 0:00:04]}  cxd5 {[%clk 0:00:05]} 35. Qxd5 {[%clk 0:00:05]}  Nc6 {[%clk 0:00:05]} 36. Re3 {[%clk 0:00:05]}  Ne5 {[%clk 0:00:04]} 37. Qxb7 {[%clk 0:00:04]}  Qxb7 {[%clk 0:00:03]} 38. Nxb7 {[%clk 0:00:05]}  Rc8 {[%clk 0:00:04]} 39. Rc3 {[%clk 0:00:04]}  Nc6 {[%clk 0:00:04]} 40. Nd6 {[%clk 0:00:03]}  Rd8 {[%clk 0:00:04]} 41. Re3 {[%clk 0:00:04]}  Rd7 {[%clk 0:00:04]} 42. Ne8 {[%clk 0:00:04]}  Rf7 {[%clk 0:00:03]} 43. Kh2 {[%clk 0:00:04]}  Kh6 {[%clk 0:00:03]} 44. Nd6 {[%clk 0:00:04]}  Rd7 {[%clk 0:00:03]} 45. Re6 {[%clk 0:00:05]}  Nd4 {[%clk 0:00:03]} 46. Rxf6 {[%clk 0:00:04]}  Nxc2 {[%clk 0:00:03]} 47. c6 {[%clk 0:00:04]}  Rc7 {[%clk 0:00:03]} 48. Nb5 {[%clk 0:00:05]}  Rc8 {[%clk 0:00:04]} 49. c7 {[%clk 0:00:05]}  Nb4 {[%clk 0:00:04]} 50. Rb6 {[%clk 0:00:05]}  Nd5 {[%clk 0:00:05]} 51. Rb8 {[%clk 0:00:05]}  Rxc7 {[%clk 0:00:04]} 52. Nxc7 {[%clk 0:00:06]}  Nxc7 {[%clk 0:00:05]} 53. Rb5 {[%clk 0:00:06]}  h4 {[%clk 0:00:06]} 54. Rxa5 {[%clk 0:00:06]}  Ne6 {[%clk 0:00:06]} 55. Rb5 {[%clk 0:00:06]}  Nd4 {[%clk 0:00:07]} 56. Rb4 {[%clk 0:00:06]}  Nc6 {[%clk 0:00:07]} 57. Rxh4+ {[%clk 0:00:06]}  Kg5 {[%clk 0:00:07]} 58. Rc4 {[%clk 0:00:07]}  Na5 {[%clk 0:00:08]} 59. Rc5+ {[%clk 0:00:08]} 1-0


[Site "https://www.chess.com"]

[Event "Titled Tuesday Blitz May 10 Early 2022"]
[White "Bacrot, Etienne"]
[Black "Sarana, Alexey"]
[WhiteFideId "605506"]
[BlackFideId "24133795"]
[WhiteElo "2673"]
[BlackElo "2666"]
[Result "1-0"]
[Round "10"]
[TimeControl "180+1"]
[Date "2022.05.10"]
[WhiteClock "0:00:10"]
[BlackClock "0:00:12"]

1. e4 {[%clk 0:03:00]}  d6 {[%clk 0:03:00]} 2. Nf3 {[%clk 0:03:01]}  Nf6 {[%clk 0:03:00]} 3. Nc3 {[%clk 0:03:00]}  c5 {[%clk 0:03:01]} 4. h3 {[%clk 0:02:58]}  a6 {[%clk 0:02:59]} 5. a4 {[%clk 0:02:57]}  Nc6 {[%clk 0:02:56]} 6. Bc4 {[%clk 0:02:57]}  e6 {[%clk 0:02:56]} 7. O-O {[%clk 0:02:56]}  d5 {[%clk 0:02:54]} 8. exd5 {[%clk 0:02:54]}  exd5 {[%clk 0:02:55]} 9. Re1+ {[%clk 0:02:52]}  Be7 {[%clk 0:02:55]} 10. Ba2 {[%clk 0:02:47]}  O-O {[%clk 0:02:54]} 11. d4 {[%clk 0:02:47]}  c4 {[%clk 0:02:52]} 12. b3 {[%clk 0:02:32]}  Bb4 {[%clk 0:02:39]} 13. Bd2 {[%clk 0:02:26]}  Qa5 {[%clk 0:02:38]} 14. Re3 {[%clk 0:02:14]}  cxb3 {[%clk 0:02:36]} 15. Bxb3 {[%clk 0:02:12]}  Be6 {[%clk 0:02:36]} 16. Ng5 {[%clk 0:02:00]}  Bf5 {[%clk 0:02:35]} 17. Nf3 {[%clk 0:01:47]}  Rfe8 {[%clk 0:02:27]} 18. g4 {[%clk 0:01:29]}  Rxe3 {[%clk 0:02:16]} 19. fxe3 {[%clk 0:01:29]}  Bxg4 {[%clk 0:02:02]} 20. Nxd5 {[%clk 0:01:18]}  Bxf3 {[%clk 0:00:51]} 21. Nxf6+ {[%clk 0:01:14]}  gxf6 {[%clk 0:00:51]} 22. Qxf3 {[%clk 0:01:08]}  Bxd2 {[%clk 0:00:51]} 23. Kh1 {[%clk 0:00:52]}  f5 {[%clk 0:00:24]} 24. Rg1+ {[%clk 0:00:30]}  Kf8 {[%clk 0:00:24]} 25. Qh5 {[%clk 0:00:30]}  Nd8 {[%clk 0:00:20]} 26. Qh6+ {[%clk 0:00:14]}  Ke7 {[%clk 0:00:20]} 27. Rg8 {[%clk 0:00:14]}  Kd7 {[%clk 0:00:15]} 28. Qf4 {[%clk 0:00:06]}  Rc8 {[%clk 0:00:13]} 29. Rg5 {[%clk 0:00:05]}  Qb6 {[%clk 0:00:12]} 30. Rxf5 {[%clk 0:00:05]}  Qd6 {[%clk 0:00:11]} 31. Rd5 {[%clk 0:00:05]}  Qxd5+ {[%clk 0:00:12]} 32. Bxd5 {[%clk 0:00:05]}  Rc3 {[%clk 0:00:11]} 33. Bxf7 {[%clk 0:00:03]}  Bxe3 {[%clk 0:00:11]} 34. Qf5+ {[%clk 0:00:03]}  Ke7 {[%clk 0:00:11]} 35. Bb3 {[%clk 0:00:03]}  Nc6 {[%clk 0:00:11]} 36. Qe4+ {[%clk 0:00:03]}  Kd8 {[%clk 0:00:11]} 37. d5 {[%clk 0:00:03]}  Ne7 {[%clk 0:00:07]} 38. d6 {[%clk 0:00:04]}  Nc8 {[%clk 0:00:08]} 39. Qxh7 {[%clk 0:00:04]}  Nxd6 {[%clk 0:00:08]} 40. Qh8+ {[%clk 0:00:04]}  Kd7 {[%clk 0:00:09]} 41. Qxc3 {[%clk 0:00:05]}  Bh6 {[%clk 0:00:09]} 42. Qd3 {[%clk 0:00:06]}  Bg7 {[%clk 0:00:09]} 43. h4 {[%clk 0:00:06]}  Be5 {[%clk 0:00:10]} 44. h5 {[%clk 0:00:07]}  Ke7 {[%clk 0:00:11]} 45. h6 {[%clk 0:00:08]}  Kf6 {[%clk 0:00:11]} 46. h7 {[%clk 0:00:09]}  Kg7 {[%clk 0:00:11]} 47. Qe3 {[%clk 0:00:08]}  Bf6 {[%clk 0:00:11]} 48. Qh3 {[%clk 0:00:08]}  Kh8 {[%clk 0:00:10]} 49. Qg4 {[%clk 0:00:08]}  Kxh7 {[%clk 0:00:09]} 50. Qd7+ {[%clk 0:00:08]}  Kg6 {[%clk 0:00:10]} 51. Qxd6 {[%clk 0:00:08]}  b6 {[%clk 0:00:11]} 52. Qd5 {[%clk 0:00:09]}  b5 {[%clk 0:00:12]} 53. axb5 {[%clk 0:00:09]}  axb5 {[%clk 0:00:12]} 54. Qxb5 {[%clk 0:00:10]} 1-0


[Site "https://www.chess.com"]

[Event "Titled Tuesday Blitz May 10 Early 2022"]
[White "Bifulco, Michel"]
[Black "Howell, David W L"]
[WhiteFideId "828580"]
[BlackFideId "410608"]
[WhiteElo "2165"]
[BlackElo "2559"]
[Result "0-1"]
[Round "10"]
[TimeControl "180+1"]
[Date "2022.05.11"]
[WhiteClock "0:00:06"]
[BlackClock "0:00:02"]

1. d4 {[%clk 0:03:00]}  d5 {[%clk 0:02:44]} 2. Nc3 {[%clk 0:03:00]}  e6 {[%clk 0:02:35]} 3. Bf4 {[%clk 0:02:59]}  Bd6 {[%clk 0:02:31]} 4. Bxd6 {[%clk 0:02:58]}  Qxd6 {[%clk 0:02:23]} 5. Nf3 {[%clk 0:02:55]}  Nf6 {[%clk 0:02:15]} 6. Qd3 {[%clk 0:02:54]}  c5 {[%clk 0:02:08]} 7. dxc5 {[%clk 0:02:52]}  Qxc5 {[%clk 0:02:07]} 8. e3 {[%clk 0:02:52]}  Nc6 {[%clk 0:02:02]} 9. Be2 {[%clk 0:02:51]}  O-O {[%clk 0:01:56]} 10. O-O {[%clk 0:02:51]}  a6 {[%clk 0:01:54]} 11. Nd4 {[%clk 0:02:42]}  b5 {[%clk 0:01:39]} 12. Nxc6 {[%clk 0:02:22]}  Qxc6 {[%clk 0:01:40]} 13. Bf3 {[%clk 0:02:23]}  Bb7 {[%clk 0:01:37]} 14. Rfe1 {[%clk 0:02:20]}  Rfd8 {[%clk 0:01:36]} 15. Rad1 {[%clk 0:02:18]}  b4 {[%clk 0:01:35]} 16. Ne2 {[%clk 0:02:17]}  a5 {[%clk 0:01:35]} 17. Nd4 {[%clk 0:02:04]}  Qc5 {[%clk 0:01:35]} 18. Be2 {[%clk 0:01:28]}  Ne4 {[%clk 0:01:21]} 19. Nb3 {[%clk 0:01:25]}  Qc7 {[%clk 0:01:14]} 20. c4 {[%clk 0:00:44]}  bxc3 {[%clk 0:00:41]} 21. bxc3 {[%clk 0:00:44]}  Ba6 {[%clk 0:00:30]} 22. Qd4 {[%clk 0:00:26]}  e5 {[%clk 0:00:23]} 23. Qa4 {[%clk 0:00:13]}  Bxe2 {[%clk 0:00:23]} 24. Rxe2 {[%clk 0:00:11]}  Nxc3 {[%clk 0:00:23]} 25. Rc2 {[%clk 0:00:08]}  d4 {[%clk 0:00:11]} 26. exd4 {[%clk 0:00:08]}  Rdc8 {[%clk 0:00:04]} 27. Rdc1 {[%clk 0:00:06]}  Ne2+ {[%clk 0:00:02]} 28. Rxe2 {[%clk 0:00:06]}  Qxc1+ {[%clk 0:00:02]} 0-1


[Site "https://www.chess.com"]

[Event "Titled Tuesday Blitz May 10 Early 2022"]
[White "Boidiya, Sidi"]
[Black "Skytte, Rasmus"]
[WhiteFideId "19600100"]
[BlackFideId "1404210"]
[WhiteElo "2113"]
[BlackElo "2430"]
[Result "0-1"]
[Round "10"]
[TimeControl "180+1"]
[Date "2022.05.11"]
[WhiteClock "0:01:33"]
[BlackClock "0:00:23"]

1. e4 {[%clk 0:02:55]}  c6 {[%clk 0:02:58]} 2. d4 {[%clk 0:02:55]}  d5 {[%clk 0:02:59]} 3. Nd2 {[%clk 0:02:56]}  dxe4 {[%clk 0:02:55]} 4. Nxe4 {[%clk 0:02:57]}  Nf6 {[%clk 0:02:54]} 5. Ng5 {[%clk 0:02:56]}  c5 {[%clk 0:02:51]} 6. N1f3 {[%clk 0:02:55]}  Nc6 {[%clk 0:02:12]} 7. Bb5 {[%clk 0:02:47]}  Qa5+ {[%clk 0:02:06]} 8. Bd2 {[%clk 0:02:47]}  Qxb5 {[%clk 0:02:04]} 9. a4 {[%clk 0:02:46]}  Qa6 {[%clk 0:01:48]} 10. dxc5 {[%clk 0:02:43]}  h6 {[%clk 0:01:46]} 11. Nh3 {[%clk 0:02:38]}  Bxh3 {[%clk 0:01:42]} 12. gxh3 {[%clk 0:02:39]}  e5 {[%clk 0:01:41]} 13. Be3 {[%clk 0:02:38]}  Rd8 {[%clk 0:01:34]} 14. Qc1 {[%clk 0:02:35]}  Qc4 {[%clk 0:01:26]} 15. Nd2 {[%clk 0:02:29]}  Qd5 {[%clk 0:01:22]} 16. Rg1 {[%clk 0:02:26]}  Bxc5 {[%clk 0:01:15]} 17. Nb3 {[%clk 0:02:26]}  Bxe3 {[%clk 0:01:05]} 18. Qxe3 {[%clk 0:02:27]}  Nb4 {[%clk 0:00:48]} 19. Qc3 {[%clk 0:02:16]}  Qe4+ {[%clk 0:00:46]} 20. Kf1 {[%clk 0:02:16]}  O-O {[%clk 0:00:45]} 21. Nc5 {[%clk 0:02:09]}  Qh4 {[%clk 0:00:39]} 22. Rg3 {[%clk 0:01:58]}  Nbd5 {[%clk 0:00:35]} 23. Qxe5 {[%clk 0:01:51]}  Rfe8 {[%clk 0:00:35]} 24. Qf5 {[%clk 0:01:51]}  Qc4+ {[%clk 0:00:30]} 25. Nd3 {[%clk 0:01:50]}  Qe4 {[%clk 0:00:27]} 26. Qxe4 {[%clk 0:01:37]}  Nxe4 {[%clk 0:00:28]} 27. Kg2 {[%clk 0:01:35]}  Nxg3 {[%clk 0:00:27]} 28. hxg3 {[%clk 0:01:36]}  a5 {[%clk 0:00:26]} 29. Kf3 {[%clk 0:01:35]}  Nb4 {[%clk 0:00:26]} 30. Nc5 {[%clk 0:01:34]}  Rd2 {[%clk 0:00:24]} 31. c3 {[%clk 0:01:32]}  Nd3 {[%clk 0:00:24]} 32. Nxb7 {[%clk 0:01:33]}  Rxf2+ {[%clk 0:00:23]} 33. Kg4 {[%clk 0:01:33]}  Re4+ {[%clk 0:00:23]} 34. Kh5 {[%clk 0:01:33]}  Rf5# {[%clk 0:00:23]} 0-1


[Site "https://www.chess.com"]

[Event "Titled Tuesday Blitz May 10 Early 2022"]
[White "Bok, Benjamin"]
[Black "Terry, Renato"]
[WhiteFideId "1017063"]
[BlackFideId "3803457"]
[WhiteElo "2658"]
[BlackElo "2577"]
[Result "0-1"]
[Round "10"]
[TimeControl "180+1"]
[Date "2022.05.10"]
[WhiteClock "0:00:01"]
[BlackClock "0:00:42"]

1. d4 {[%clk 0:03:00]}  d5 {[%clk 0:03:00]} 2. c4 {[%clk 0:03:01]}  c6 {[%clk 0:03:01]} 3. Nf3 {[%clk 0:03:01]}  Nf6 {[%clk 0:03:01]} 4. cxd5 {[%clk 0:03:01]}  cxd5 {[%clk 0:03:01]} 5. Nc3 {[%clk 0:03:02]}  a6 {[%clk 0:03:01]} 6. Bf4 {[%clk 0:03:02]}  Nc6 {[%clk 0:03:01]} 7. Rc1 {[%clk 0:03:02]}  e6 {[%clk 0:02:58]} 8. e3 {[%clk 0:03:01]}  Be7 {[%clk 0:02:53]} 9. h3 {[%clk 0:03:00]}  O-O {[%clk 0:02:51]} 10. Bd3 {[%clk 0:03:00]}  Bd7 {[%clk 0:02:48]} 11. O-O {[%clk 0:02:59]}  Rc8 {[%clk 0:02:48]} 12. Ne5 {[%clk 0:02:58]}  g6 {[%clk 0:02:31]} 13. Bh6 {[%clk 0:02:48]}  Re8 {[%clk 0:02:31]} 14. f4 {[%clk 0:02:49]}  Na5 {[%clk 0:02:13]} 15. Bg5 {[%clk 0:02:26]}  b5 {[%clk 0:02:09]} 16. Qe2 {[%clk 0:02:24]}  Nc4 {[%clk 0:01:42]} 17. b3 {[%clk 0:02:21]}  Na3 {[%clk 0:01:42]} 18. Nb1 {[%clk 0:01:31]}  Nxb1 {[%clk 0:01:37]} 19. Bxb1 {[%clk 0:01:32]}  Nh5 {[%clk 0:01:26]} 20. Bxe7 {[%clk 0:01:19]}  Qxe7 {[%clk 0:01:25]} 21. Kh2 {[%clk 0:01:10]}  Qd6 {[%clk 0:01:13]} 22. Qd2 {[%clk 0:01:06]}  b4 {[%clk 0:01:12]} 23. Rc5 {[%clk 0:01:01]}  Bb5 {[%clk 0:00:52]} 24. Rfc1 {[%clk 0:00:59]}  Rxc5 {[%clk 0:00:46]} 25. dxc5 {[%clk 0:00:55]}  Qc7 {[%clk 0:00:47]} 26. Qxb4 {[%clk 0:00:54]}  f6 {[%clk 0:00:47]} 27. Ng4 {[%clk 0:00:42]}  e5 {[%clk 0:00:46]} 28. fxe5 {[%clk 0:00:37]}  f5 {[%clk 0:00:46]} 29. Nf2 {[%clk 0:00:06]}  Qxe5+ {[%clk 0:00:46]} 30. Kg1 {[%clk 0:00:07]}  Ng3 {[%clk 0:00:46]} 31. Re1 {[%clk 0:00:05]}  Ne2+ {[%clk 0:00:42]} 32. Kh1 {[%clk 0:00:05]}  Qxe3 {[%clk 0:00:42]} 33. Rf1 {[%clk 0:00:01]}  Ng3+ {[%clk 0:00:42]} 0-1


[Site "https://www.chess.com"]

[Event "Titled Tuesday Blitz May 10 Early 2022"]
[White "Bortnyk, Olexandr"]
[Black "Kozak, Adam"]
[WhiteFideId "14120828"]
[BlackFideId "753246"]
[WhiteElo "2723"]
[BlackElo "2459"]
[Result "0-1"]
[Round "10"]
[TimeControl "180+1"]
[Date "2022.05.10"]
[WhiteClock "0:00:02"]
[BlackClock "0:01:55"]

1. e4 {[%clk 0:02:57]}  c5 {[%clk 0:02:59]} 2. c3 {[%clk 0:02:54]}  d5 {[%clk 0:02:56]} 3. exd5 {[%clk 0:02:53]}  Qxd5 {[%clk 0:02:57]} 4. d4 {[%clk 0:02:53]}  e6 {[%clk 0:02:58]} 5. Be3 {[%clk 0:02:52]}  Nf6 {[%clk 0:02:58]} 6. Nf3 {[%clk 0:02:51]}  Nc6 {[%clk 0:02:58]} 7. dxc5 {[%clk 0:02:51]}  Qxd1+ {[%clk 0:02:58]} 8. Kxd1 {[%clk 0:02:52]}  Ng4 {[%clk 0:02:58]} 9. b4 {[%clk 0:02:51]}  a5 {[%clk 0:02:56]} 10. Bb5 {[%clk 0:02:47]}  Nxe3+ {[%clk 0:02:54]} 11. fxe3 {[%clk 0:02:46]}  Bd7 {[%clk 0:02:54]} 12. Bxc6 {[%clk 0:02:43]}  Bxc6 {[%clk 0:02:53]} 13. Nbd2 {[%clk 0:02:33]}  b6 {[%clk 0:02:52]} 14. Nb3 {[%clk 0:01:51]}  Bd5 {[%clk 0:02:42]} 15. cxb6 {[%clk 0:01:14]}  axb4 {[%clk 0:02:41]} 16. Kd2 {[%clk 0:01:13]}  Rb8 {[%clk 0:02:32]} 17. c4 {[%clk 0:01:06]}  Bxc4 {[%clk 0:02:30]} 18. Rhc1 {[%clk 0:01:03]}  Bd5 {[%clk 0:02:30]} 19. Kd3 {[%clk 0:00:40]}  f5 {[%clk 0:02:23]} 20. Rc7 {[%clk 0:00:39]}  Be7 {[%clk 0:02:15]} 21. Rac1 {[%clk 0:00:27]}  Rxb6 {[%clk 0:02:14]} 22. Rc8+ {[%clk 0:00:16]}  Bd8 {[%clk 0:02:14]} 23. Ne5 {[%clk 0:00:16]}  Rd6 {[%clk 0:02:07]} 24. Ke2 {[%clk 0:00:12]}  O-O {[%clk 0:02:06]} 25. Rb8 {[%clk 0:00:05]}  Ra6 {[%clk 0:02:03]} 26. Nd4 {[%clk 0:00:03]}  Rxa2+ {[%clk 0:01:57]} 27. Kf1 {[%clk 0:00:03]}  Be7 {[%clk 0:01:58]} 28. Rxf8+ {[%clk 0:00:02]}  Bxf8 {[%clk 0:01:57]} 29. Rc8 {[%clk 0:00:03]}  Ra8 {[%clk 0:01:57]} 30. Rc7 {[%clk 0:00:02]}  Bd6 {[%clk 0:01:55]} 0-1


[Site "https://www.chess.com"]

[Event "Titled Tuesday Blitz May 10 Early 2022"]
[White "Cagara, Paulina"]
[Black "Friedel, Tom"]
[WhiteFideId "1124870"]
[BlackFideId "2002108"]
[WhiteElo "1800"]
[BlackElo "2327"]
[Result "1-0"]
[Round "10"]
[TimeControl "180+1"]
[Date "2022.05.11"]
[WhiteClock "0:01:18"]
[BlackClock "0:00:05"]

1. e4 {[%clk 0:03:00]}  c6 {[%clk 0:02:59]} 2. d4 {[%clk 0:03:00]}  d5 {[%clk 0:03:00]} 3. exd5 {[%clk 0:02:59]}  cxd5 {[%clk 0:03:01]} 4. Bd3 {[%clk 0:02:59]}  Nf6 {[%clk 0:03:02]} 5. h3 {[%clk 0:02:57]}  Nc6 {[%clk 0:03:02]} 6. c3 {[%clk 0:02:56]}  g6 {[%clk 0:03:03]} 7. Nf3 {[%clk 0:02:56]}  Bg7 {[%clk 0:03:03]} 8. O-O {[%clk 0:02:55]}  O-O {[%clk 0:03:04]} 9. Bf4 {[%clk 0:02:53]}  Bf5 {[%clk 0:03:03]} 10. Bxf5 {[%clk 0:02:52]}  gxf5 {[%clk 0:03:04]} 11. Re1 {[%clk 0:02:53]}  Kh8 {[%clk 0:02:56]} 12. Ne5 {[%clk 0:02:51]}  e6 {[%clk 0:02:50]} 13. Nd2 {[%clk 0:02:49]}  Nd7 {[%clk 0:02:50]} 14. Ndf3 {[%clk 0:02:45]}  Ndxe5 {[%clk 0:02:44]} 15. Nxe5 {[%clk 0:02:44]}  Nxe5 {[%clk 0:02:44]} 16. Bxe5 {[%clk 0:02:44]}  Rg8 {[%clk 0:02:45]} 17. Qh5 {[%clk 0:02:38]}  Bxe5 {[%clk 0:02:37]} 18. Rxe5 {[%clk 0:02:37]}  Rg5 {[%clk 0:02:24]} 19. Qxf7 {[%clk 0:02:34]}  Qg8 {[%clk 0:01:05]} 20. Qxg8+ {[%clk 0:02:33]}  Raxg8 {[%clk 0:01:04]} 21. g3 {[%clk 0:02:33]}  h5 {[%clk 0:00:52]} 22. h4 {[%clk 0:02:31]}  Rg4 {[%clk 0:00:52]} 23. Rae1 {[%clk 0:02:27]}  f4 {[%clk 0:00:51]} 24. Rxh5+ {[%clk 0:02:27]}  Kg7 {[%clk 0:00:52]} 25. Kh2 {[%clk 0:02:18]}  fxg3+ {[%clk 0:00:48]} 26. fxg3 {[%clk 0:02:17]}  Kg6 {[%clk 0:00:33]} 27. Rhe5 {[%clk 0:02:14]}  Kf7 {[%clk 0:00:33]} 28. Rxe6 {[%clk 0:02:07]}  Rxg3 {[%clk 0:00:31]} 29. Re7+ {[%clk 0:02:08]}  Kf6 {[%clk 0:00:31]} 30. R1e6+ {[%clk 0:02:07]}  Kf5 {[%clk 0:00:31]} 31. Re5+ {[%clk 0:02:07]}  Kf4 {[%clk 0:00:31]} 32. Rf7+ {[%clk 0:02:03]}  Kg4 {[%clk 0:00:31]} 33. Rxd5 {[%clk 0:01:54]}  Kxh4 {[%clk 0:00:20]} 34. Rh7+ {[%clk 0:01:52]}  Kg4 {[%clk 0:00:20]} 35. Re5 {[%clk 0:01:45]}  Kf4 {[%clk 0:00:12]} 36. Rf7+ {[%clk 0:01:43]}  Kg4 {[%clk 0:00:12]} 37. Re4+ {[%clk 0:01:36]}  Kh5 {[%clk 0:00:10]} 38. Rh7+ {[%clk 0:01:29]}  Kg6 {[%clk 0:00:10]} 39. Kxg3 {[%clk 0:01:29]}  Kxh7+ {[%clk 0:00:10]} 40. Kf3 {[%clk 0:01:28]}  Rf8+ {[%clk 0:00:10]} 41. Ke3 {[%clk 0:01:27]}  Rg8 {[%clk 0:00:10]} 42. Re7+ {[%clk 0:01:27]}  Kh6 {[%clk 0:00:09]} 43. Rxb7 {[%clk 0:01:27]}  Rg2 {[%clk 0:00:10]} 44. Kd3 {[%clk 0:01:26]}  Kg5 {[%clk 0:00:09]} 45. Kc4 {[%clk 0:01:26]}  Kf4 {[%clk 0:00:10]} 46. a4 {[%clk 0:01:25]}  Ke4 {[%clk 0:00:10]} 47. b4 {[%clk 0:01:25]}  Ke3 {[%clk 0:00:08]} 48. Rxa7 {[%clk 0:01:23]}  Kd2 {[%clk 0:00:09]} 49. Rf7 {[%clk 0:01:23]}  Rg3 {[%clk 0:00:09]} 50. Rf2+ {[%clk 0:01:19]}  Ke1 {[%clk 0:00:09]} 51. Rh2 {[%clk 0:01:19]}  Rg8 {[%clk 0:00:06]} 52. b5 {[%clk 0:01:19]}  Rc8+ {[%clk 0:00:07]} 53. Kb4 {[%clk 0:01:19]}  Rd8 {[%clk 0:00:05]} 54. a5 {[%clk 0:01:18]} 1-0


[Site "https://www.chess.com"]

[Event "Titled Tuesday Blitz May 10 Early 2022"]
[White "Cherniaiev, Tykhon"]
[Black "Gurevich, Dmitry"]
[WhiteFideId "14182360"]
[BlackFideId "2000407"]
[WhiteElo "2289"]
[BlackElo "2506"]
[Result "1/2-1/2"]
[Round "10"]
[TimeControl "180+1"]
[Date "2022.05.10"]
[WhiteClock "0:01:08"]
[BlackClock "0:01:29"]

1. Nf3 {[%clk 0:03:00]}  Nf6 {[%clk 0:02:59]} 2. d4 {[%clk 0:03:00]}  e6 {[%clk 0:02:57]} 3. c4 {[%clk 0:02:59]}  a6 {[%clk 0:02:57]} 4. e3 {[%clk 0:02:54]}  c5 {[%clk 0:02:57]} 5. Nc3 {[%clk 0:02:53]}  d5 {[%clk 0:02:57]} 6. cxd5 {[%clk 0:02:50]}  exd5 {[%clk 0:02:56]} 7. dxc5 {[%clk 0:02:51]}  Bxc5 {[%clk 0:02:56]} 8. Bd3 {[%clk 0:02:51]}  Nc6 {[%clk 0:02:55]} 9. O-O {[%clk 0:02:51]}  O-O {[%clk 0:02:55]} 10. b3 {[%clk 0:02:51]}  Re8 {[%clk 0:02:53]} 11. Bb2 {[%clk 0:02:45]}  d4 {[%clk 0:02:53]} 12. exd4 {[%clk 0:02:45]}  Nxd4 {[%clk 0:02:52]} 13. Nxd4 {[%clk 0:02:45]}  Bxd4 {[%clk 0:02:47]} 14. Qc2 {[%clk 0:02:45]}  Bg4 {[%clk 0:02:39]} 15. h3 {[%clk 0:02:27]}  Bh5 {[%clk 0:02:39]} 16. Rfe1 {[%clk 0:02:25]}  Rc8 {[%clk 0:02:21]} 17. Qd2 {[%clk 0:02:11]}  Rxe1+ {[%clk 0:02:10]} 18. Rxe1 {[%clk 0:02:10]}  Bg6 {[%clk 0:01:53]} 19. Bxg6 {[%clk 0:01:28]}  hxg6 {[%clk 0:01:52]} 20. Rd1 {[%clk 0:01:25]}  Bb6 {[%clk 0:01:47]} 21. Qxd8+ {[%clk 0:01:24]}  Rxd8 {[%clk 0:01:45]} 22. Rxd8+ {[%clk 0:01:22]}  Bxd8 {[%clk 0:01:45]} 23. Kf1 {[%clk 0:01:16]}  Kf8 {[%clk 0:01:44]} 24. Ke2 {[%clk 0:01:16]}  Ke7 {[%clk 0:01:43]} 25. Na4 {[%clk 0:01:12]}  Kd6 {[%clk 0:01:38]} 26. Ba3+ {[%clk 0:01:10]}  Kd5 {[%clk 0:01:32]} 27. Nc3+ {[%clk 0:01:08]}  Ke6 {[%clk 0:01:29]} 28. Na4 {[%clk 0:01:08]}  Kd5 {[%clk 0:01:29]} 29. Nc3+ {[%clk 0:01:08]}  Ke6 {[%clk 0:01:29]} 30. Na4 {[%clk 0:01:08]}  Kd5 {[%clk 0:01:29]} 1/2-1/2


[Site "https://www.chess.com"]

[Event "Titled Tuesday Blitz May 10 Early 2022"]
[White "Cunha, Lucas Aguiar"]
[Black "Bettalli, Francesco"]
[WhiteFideId "2125404"]
[BlackFideId "2816453"]
[WhiteElo "2361"]
[BlackElo "2216"]
[Result "1-0"]
[Round "10"]
[TimeControl "180+1"]
[Date "2022.05.11"]
[WhiteClock "0:02:00"]
[BlackClock "0:00:58"]

1. e4 {[%clk 0:03:00]}  e5 {[%clk 0:02:57]} 2. Nf3 {[%clk 0:02:59]}  Nf6 {[%clk 0:02:58]} 3. Nc3 {[%clk 0:02:59]}  Bc5 {[%clk 0:02:57]} 4. Nxe5 {[%clk 0:02:57]}  Nc6 {[%clk 0:02:58]} 5. Nf3 {[%clk 0:02:51]}  O-O {[%clk 0:02:56]} 6. Be2 {[%clk 0:02:44]}  Re8 {[%clk 0:02:41]} 7. d3 {[%clk 0:02:44]}  d5 {[%clk 0:02:41]} 8. exd5 {[%clk 0:02:38]}  Nxd5 {[%clk 0:02:42]} 9. Nxd5 {[%clk 0:02:38]}  Qxd5 {[%clk 0:02:43]} 10. O-O {[%clk 0:02:38]}  Bg4 {[%clk 0:02:38]} 11. c3 {[%clk 0:02:37]}  Re6 {[%clk 0:02:35]} 12. d4 {[%clk 0:02:37]}  Bd6 {[%clk 0:02:32]} 13. Be3 {[%clk 0:02:36]}  Rae8 {[%clk 0:02:31]} 14. c4 {[%clk 0:02:36]}  Qh5 {[%clk 0:02:30]} 15. h3 {[%clk 0:02:35]}  Bxh3 {[%clk 0:02:27]} 16. Ng5 {[%clk 0:02:32]}  Qg6 {[%clk 0:02:24]} 17. Nxh3 {[%clk 0:02:31]}  Rxe3 {[%clk 0:02:17]} 18. fxe3 {[%clk 0:02:32]}  Qg3 {[%clk 0:02:17]} 19. Rf3 {[%clk 0:02:29]}  Qh2+ {[%clk 0:02:17]} 20. Kf2 {[%clk 0:02:29]}  Be7 {[%clk 0:02:00]} 21. Qg1 {[%clk 0:02:20]}  Bh4+ {[%clk 0:01:57]} 22. Kf1 {[%clk 0:02:20]}  Qd6 {[%clk 0:01:54]} 23. a3 {[%clk 0:02:16]}  Na5 {[%clk 0:01:46]} 24. g3 {[%clk 0:02:11]}  Bf6 {[%clk 0:01:29]} 25. g4 {[%clk 0:02:08]}  Nb3 {[%clk 0:01:29]} 26. Rd1 {[%clk 0:02:08]}  Bh4 {[%clk 0:01:16]} 27. g5 {[%clk 0:02:06]}  Qg6 {[%clk 0:01:10]} 28. Qg4 {[%clk 0:02:00]}  Re4 {[%clk 0:00:58]} 29. Qc8+ {[%clk 0:02:00]} 1-0


[Site "https://www.chess.com"]